fUSD/lending_fUSD_20250202
["ID","MTS","AMOUNT","RATE_DAILY","PERIOD"]
[351270001,1738504273323,-500.0,0.00011506,2]
[351270002,1738504273332,-500.0,0.00011506,2]
[351270003,1738504273341,-500.0,0.00011506,2]
[351270004,1738504273351,-500.0,0.00011506,2]
[351270005,1738504273360,-500.0,0.00011506,2]
[351270006,1738504273369,-500.0,0.00011506,2]
[351270007,1738504273378,-500.0,0.00011506,2]
[351270008,1738504273387,-500.0,0.00011506,2]
[351270009,1738504273397,-692.37,0.00011506,2]
[351270010,1738504273406,-500.0,0.00011506,2]
[351270011,1738504273415,-500.0,0.00011506,2]
[351270012,1738504273426,-500.0,0.00011506,2]
[351270013,1738504273435,-500.0,0.00011506,2]
[351270014,1738504273445,-621.35,0.00011506,2]
[351270015,1738504273454,-500.0,0.00011506,2]
[351270016,1738504273463,-673.47,0.00011506,2]
[351270017,1738504273472,-503.71484956,0.00011506,2]
[351270018,1738504273482,-500.0,0.00011506,2]
[351270019,1738504273491,-1236.43,0.00011506,2]
[351270020,1738504273500,-500.0,0.00011506,2]
[351270021,1738504273510,-523.95496061,0.00011506,2]
[351270022,1738504273519,-507.22,0.00011506,2]
[351270023,1738504273528,-500.0,0.00011506,2]
[351270024,1738504273537,-513.15072877,0.00011506,2]
[351270025,1738504273547,-965.22,0.00011506,2]
[351270026,1738504273556,-500.0,0.00011506,2]
[351270027,1738504273566,-1101.6,0.00011506,2]
[351270028,1738504273575,-778.66,0.00011506,2]
[351270029,1738504273585,-801.88,0.00011506,2]
[351270030,1738504273595,-500.0,0.00011506,2]
[351270031,1738504273604,-500.0,0.00011506,2]
[351270032,1738504273613,-500.0,0.00011506,2]
[351270033,1738504273623,-500.0,0.00011506,2]
[351270034,1738504273632,-500.0,0.00011506,2]
[351270035,1738504273641,-500.0,0.00011506,2]
[351270036,1738504273651,-500.0,0.00011506,2]
[351270037,1738504273660,-627.76,0.00011506,2]
[351270038,1738504273670,-331.37192851,0.00011506,2]
[351270039,1738504273680,-500.0,0.00011506,2]
[351270040,1738504273690,-500.0,0.00011506,2]
[351270041,1738504273699,-500.0,0.00011506,2]
[351270042,1738504273709,-658.67,0.00011506,2]
[351270043,1738504273718,-600.42,0.00011506,2]
[351270044,1738504273727,-500.0,0.00011506,2]
[351270045,1738504273736,-500.0,0.00011506,2]
[351270046,1738504273746,-500.0,0.00011506,2]
[351270047,1738504273755,-500.0,0.00011506,2]
[351270048,1738504273764,-500.0,0.00011506,2]
[351270049,1738504273775,-500.0,0.00011506,2]
[351270050,1738504273785,-500.0,0.00011506,2]
[351270051,1738504273794,-500.0,0.00011506,2]
[351270052,1738504273805,-519.27,0.00011506,2]
[351270053,1738504273815,-500.0,0.00011506,2]
[351270054,1738504273824,-500.0,0.00011506,2]
[351270055,1738504273833,-500.0,0.00011506,2]
[351270056,1738504273843,-500.0,0.00011506,2]
[351270057,1738504273851,-500.0,0.00011506,2]
[351270058,1738504273861,-500.0,0.00011506,2]
[351270059,1738504273870,-583.74,0.00011506,2]
[351270060,1738504273880,-500.0,0.00011506,2]
[351270061,1738504273889,-500.0,0.00011506,2]
[351270062,1738504273898,-500.0,0.00011506,2]
[351270063,1738504273907,-500.0,0.00011506,2]
[351270064,1738504273917,-500.0,0.00011506,2]
[351270065,1738504273930,-886.58,0.00011506,2]
[351270066,1738504273940,-500.0,0.00011506,2]
[351270067,1738504273951,-784.63,0.00011506,2]
[351270068,1738504273961,-500.0,0.00011506,2]
[351270069,1738504273972,-500.0,0.00011506,2]
[351270070,1738504273983,-1054.02,0.00011506,2]
[351270071,1738504273993,-830.47,0.00011506,2]
[351270072,1738504274004,-500.0,0.00011506,2]
[351270073,1738504274015,-2967.16,0.00011506,2]
[351270074,1738504274025,-776.62,0.00011506,2]
[351270075,1738504274036,-2195.36,0.00011506,2]
[351270076,1738504274046,-500.0,0.00011506,2]
[351270077,1738504274057,-2722.25,0.00011506,2]
[351270078,1738504274068,-1769.98,0.00011506,2]
[351270079,1738504274080,-760.42,0.00011506,2]
[351270080,1738504274091,-500.0,0.00011506,2]
[351270081,1738504274101,-500.0,0.00011506,2]
[351270082,1738504274112,-500.0,0.00011506,2]
[351270083,1738504274123,-500.0,0.00011506,2]
[351270084,1738504274134,-2868.69,0.00011506,2]
[351270085,1738504274145,-500.0,0.00011506,2]
[351270086,1738504274160,-500.0,0.00011506,2]
[351270087,1738504274171,-500.0,0.00011506,2]
[351270088,1738504274189,-578.7,0.00011506,2]
[351270089,1738504274201,-500.0,0.00011506,2]
[351270090,1738504274214,-500.0,0.00011506,2]
[351270091,1738504274227,-500.0,0.00011506,2]
[351270092,1738504274238,-625.03744311,0.00011506,2]
[351270093,1738504274249,-1031.69,0.00011506,2]
[351270094,1738504274262,-812.08,0.00011506,2]
[351270095,1738504274273,-921.95,0.00011506,2]
[351270096,1738504274286,-500.0,0.00011506,2]
[351270097,1738504274296,-500.0,0.00011506,2]
[351270098,1738504274308,-2430.17,0.00011506,2]
[351270099,1738504274318,-500.0,0.00011506,2]
[351270100,1738504274330,-2706.0,0.00011506,2]
[351270101,1738504274341,-500.0,0.00011506,2]
[351270102,1738504274351,-500.0,0.00011506,2]
[351270103,1738504274363,-500.0,0.00011506,2]
[351270104,1738504274525,-500.0,0.00011506,2]
[351270105,1738504274553,-500.0,0.00011506,2]
[351270106,1738504274563,-500.0,0.00011506,2]
[351270107,1738504274574,-1539.03,0.00011506,2]
[351270108,1738504274584,-666.52,0.00011506,2]
[351270109,1738504274594,-667.34,0.00011506,2]
[351270110,1738504274604,-500.0,0.00011506,2]
[351270111,1738504274615,-500.0,0.00011506,2]
[351270112,1738504274624,-954.44,0.00011506,2]
[351270113,1738504274634,-500.0,0.00011506,2]
[351270114,1738504274644,-500.0,0.00011506,2]
[351270115,1738504274654,-2331.72,0.00011506,2]
[351270116,1738504274664,-541.4,0.00011506,2]
[351270117,1738504274677,-2822.71,0.00011506,2]
[351270118,1738504274687,-500.0,0.00011506,2]
[351270119,1738504274697,-500.0,0.00011506,2]
[351270120,1738504274707,-623.4,0.00011506,2]
[351270121,1738504274717,-1479.26,0.00011506,2]
[351270122,1738504274727,-772.05,0.00011506,2]
[351270123,1738504274737,-500.0,0.00011506,2]
[351270124,1738504274746,-500.0,0.00011506,2]
[351270125,1738504274756,-500.0,0.00011506,2]
[351270126,1738504274765,-500.0,0.00011506,2]
[351270127,1738504274775,-500.0,0.00011506,2]
[351270128,1738504274784,-500.0,0.00011506,2]
[351270129,1738504274794,-662.12,0.00011506,2]
[351270130,1738504274804,-1170.81,0.00011506,2]
[351270131,1738504274814,-500.0,0.00011506,2]
[351270132,1738504274824,-500.0,0.00011506,2]
[351270133,1738504274833,-500.0,0.00011506,2]
[351270134,1738504274843,-1651.29,0.00011506,2]
[351270135,1738504274852,-500.0,0.00011506,2]
[351270136,1738504274861,-500.0,0.00011506,2]
[351270137,1738504274871,-524.04825948,0.00011506,2]
[351270138,1738504274880,-500.0,0.00011506,2]
[351270139,1738504274889,-500.0,0.00011506,2]
[351270140,1738504274899,-578.91,0.00011506,2]
[351270141,1738504274908,-500.0,0.00011506,2]
[351270142,1738504274918,-500.0,0.00011506,2]
[351270143,1738504274930,-1770.67,0.00011506,2]
[351270144,1738504274940,-772.75,0.00011506,2]
[351270145,1738504274950,-500.0,0.00011506,2]
[351270146,1738504274960,-500.0,0.00011506,2]
[351270147,1738504274970,-630.26,0.00011506,2]
[351270148,1738504274980,-500.0,0.00011506,2]
[351270149,1738504274989,-500.0,0.00011506,2]
[351270150,1738504274999,-500.0,0.00011506,2]
[351270151,1738504275009,-500.0,0.00011506,2]
[351270152,1738504275018,-1856.66,0.00011506,2]
[351270153,1738504275028,-251.49250115,0.00011506,2]
[351270154,1738504275038,-500.0,0.00011506,2]
[351270155,1738504275047,-500.0,0.00011506,2]
[351270156,1738504275056,-500.0,0.00011506,2]
[351270157,1738504275066,-500.0,0.00011506,2]
[351270158,1738504275075,-1120.78,0.00011506,2]
[351270159,1738504275085,-500.0,0.00011506,2]
[351270160,1738504275095,-500.0,0.00011506,2]
[351270161,1738504275105,-628.73,0.00011506,2]
[351270162,1738504275114,-1864.42,0.00011506,2]
[351270163,1738504275124,-594.03291525,0.00011506,2]
[351270164,1738504275134,-500.0,0.00011506,2]
[351270165,1738504275143,-1425.68,0.00011506,2]
[351270166,1738504275154,-500.0,0.00011506,2]
[351270167,1738504275164,-1199.36,0.00011506,2]
[351270168,1738504275178,-500.0,0.00011506,2]
[351270169,1738504275188,-500.0,0.00011506,2]
[351270170,1738504275198,-500.0,0.00011506,2]
[351270171,1738504275209,-599.03588865,0.00011506,2]
[351270172,1738504275220,-1349.02,0.00011506,2]
[351270173,1738504275229,-500.0,0.00011506,2]
[351270174,1738504275239,-500.0,0.00011506,2]
[351270175,1738504275249,-2027.77,0.00011506,2]
[351270176,1738504275259,-650.93,0.00011506,2]
[351270177,1738504275269,-500.0,0.00011506,2]
[351270178,1738504275279,-3335.804076,0.00011506,2]
[351270179,1738504275289,-500.0,0.00011506,2]
[351270180,1738504275299,-834.11,0.00011506,2]
[351270181,1738504275309,-500.0,0.00011506,2]
[351270182,1738504275318,-717.48,0.00011506,2]
[351270183,1738504275328,-193.24654,0.00011506,2]
[351270184,1738504275338,-500.0,0.00011506,2]
[351270185,1738504275348,-2865.11,0.00011506,2]
[351270186,1738504275358,-500.0,0.00011506,2]
[351270187,1738504275367,-1105.21,0.00011506,2]
[351270188,1738504275377,-659.22,0.00011506,2]
[351270189,1738504275387,-155.292379,0.00011506,2]
[351270190,1738504275396,-2288.47,0.00011506,2]
[351270191,1738504275406,-928.34,0.00011506,2]
[351270192,1738504275415,-500.0,0.00011506,2]
[351270193,1738504275425,-500.0,0.00011506,2]
[351270194,1738504275434,-500.0,0.00011506,2]
[351270195,1738504275443,-1113.9,0.00011506,2]
[351270196,1738504275453,-1623.29,0.00011506,2]
[351270197,1738504275462,-500.0,0.00011506,2]
[351270198,1738504275472,-613.85,0.00011506,2]
[351270199,1738504275481,-500.0,0.00011506,2]
[351270200,1738504275490,-500.0,0.00011506,2]
[351270201,1738504275501,-747.66,0.00011506,2]
[351270202,1738504275510,-500.0,0.00011506,2]
[351270203,1738504275520,-1677.4,0.00011506,2]
[351270204,1738504275530,-500.0,0.00011506,2]
[351270205,1738504275539,-500.0,0.00011506,2]
[351270206,1738504275549,-595.96,0.00011506,2]
[351270207,1738504275559,-1365.65,0.00011506,2]
[351270208,1738504275568,-500.0,0.00011506,2]
[351270209,1738504275577,-500.0,0.00011506,2]
[351270210,1738504275587,-963.28,0.00011506,2]
[351270211,1738504275596,-2940.584215,0.00011506,2]
[351270212,1738504275605,-777.91,0.00011506,2]
[351270213,1738504275615,-500.0,0.00011506,2]
[351270214,1738504275625,-961.42,0.00011506,2]
[351270215,1738504275634,-500.0,0.00011506,2]
[351270216,1738504275643,-500.0,0.00011506,2]
[351270217,1738504275653,-500.0,0.00011506,2]
[351270218,1738504275662,-500.0,0.00011506,2]
[351270219,1738504275671,-500.0,0.00011506,2]
[351270220,1738504275682,-1257.0,0.00011506,2]
[351270221,1738504275691,-540.61340084,0.00011506,2]
[351270222,1738504275700,-500.0,0.00011506,2]
[351270223,1738504275709,-500.0,0.00011506,2]
[351270224,1738504275719,-513.62,0.00011506,2]
[351270225,1738504275728,-639.1,0.00011506,2]
[351270226,1738504275737,-1002.75,0.00011506,2]
[351270227,1738504275746,-500.0,0.00011506,2]
[351270228,1738504275755,-500.0,0.00011506,2]
[351270229,1738504275765,-500.0,0.00011506,2]
[351270230,1738504275774,-1576.63,0.00011506,2]
[351270231,1738504275783,-500.0,0.00011506,2]
[351270232,1738504275793,-1515.97,0.00011506,2]
[351270233,1738504275802,-701.82,0.00011506,2]
[351270234,1738504275811,-600.61,0.00011506,2]
[351270235,1738504275821,-500.0,0.00011506,2]
[351270236,1738504275830,-500.0,0.00011506,2]
[351270237,1738504275840,-500.32450659,0.00011506,2]
[351270238,1738504275849,-937.03,0.00011506,2]
[351270239,1738504275859,-500.0,0.00011506,2]
[351270240,1738504275868,-500.0,0.00011506,2]
[351270241,1738504275877,-500.0,0.00011506,2]
[351270242,1738504275887,-536.79885617,0.00011506,2]
[351270243,1738504275896,-790.34,0.00011506,2]
[351270244,1738504275906,-500.0,0.00011506,2]
[351270245,1738504275915,-558.08,0.00011506,2]
[351270246,1738504275926,-691.86,0.00011506,2]
[351270247,1738504275935,-751.26,0.00011506,2]
[351270248,1738504275945,-500.0,0.00011506,2]
[351270249,1738504275954,-500.0,0.00011506,2]
[351270250,1738504275963,-951.95,0.00011506,2]
[351270251,1738504275973,-500.0,0.00011506,2]
[351270252,1738504275982,-957.29,0.00011506,2]
[351270253,1738504275992,-2234.14,0.00011506,2]
[351270254,1738504276002,-500.0,0.00011506,2]
[351270255,1738504276011,-976.1,0.00011506,2]
[351270256,1738504276021,-500.0,0.00011506,2]
[351270257,1738504276030,-872.1,0.00011506,2]
[351270258,1738504276039,-500.0,0.00011506,2]
[351270259,1738504276049,-398.60592388,0.00011506,2]
[351270260,1738504276058,-500.0,0.00011506,2]
[351270261,1738504276068,-558.8,0.00011506,2]
[351270262,1738504276077,-500.0,0.00011506,2]
[351270263,1738504276087,-500.0,0.00011506,2]
[351270264,1738504276096,-500.0,0.00011506,2]
[351270265,1738504276106,-972.87,0.00011506,2]
[351270266,1738504276115,-500.0,0.00011506,2]
[351270267,1738504276125,-192.57942327,0.00011506,2]
[351270268,1738504276134,-158.34454529,0.00011506,2]
[351270269,1738504276143,-1646.16,0.00011506,2]
[351270270,1738504276155,-541.68,0.00011506,2]
[351270271,1738504276165,-1101.2,0.00011506,2]
[351270272,1738504276176,-500.0,0.00011506,2]
[351270273,1738504276185,-1110.27,0.00011506,2]
[351270274,1738504276197,-500.0,0.00011506,2]
[351270275,1738504276206,-501.31669356,0.00011506,2]
[351270276,1738504276216,-500.0,0.00011506,2]
[351270277,1738504276225,-692.77,0.00011506,2]
[351270278,1738504276235,-1369.05,0.00011506,2]
[351270279,1738504276244,-500.0,0.00011506,2]
[351270280,1738504276253,-567.74149889,0.00011506,2]
[351270281,1738504276263,-2276.42,0.00011506,2]
[351270282,1738504276272,-874.2,0.00011506,2]
[351270283,1738504276281,-500.0,0.00011506,2]
[351270284,1738504276290,-500.0,0.00011506,2]
[351270285,1738504276300,-500.0,0.00011506,2]
[351270286,1738504276309,-280.69706288,0.00011506,2]
[351270287,1738504276319,-500.0,0.00011506,2]
[351270288,1738504276328,-1986.06,0.00011506,2]
[351270289,1738504276337,-500.0,0.00011506,2]
[351270290,1738504276346,-213.90203874,0.00011506,2]
[351270291,1738504276355,-500.0,0.00011506,2]
[351270292,1738504276364,-500.0,0.00011506,2]
[351270293,1738504276374,-894.65,0.00011506,2]
[351270294,1738504276383,-500.0,0.00011506,2]
[351270295,1738504276392,-500.0,0.00011506,2]
[351270296,1738504276401,-533.89,0.00011506,2]
[351270297,1738504276410,-562.9,0.00011506,2]
[351270298,1738504276419,-1003.49,0.00011506,2]
[351270299,1738504276430,-500.0,0.00011506,2]
[351270300,1738504276440,-868.83,0.00011506,2]
[351270301,1738504276449,-500.0,0.00011506,2]
[351270302,1738504276459,-2481.47,0.00011506,2]
[351270303,1738504276468,-599.47,0.00011506,2]
[351270304,1738504276478,-500.0,0.00011506,2]
[351270305,1738504276487,-522.22,0.00011506,2]
[351270306,1738504276496,-500.0,0.00011506,2]
[351270307,1738504276506,-500.0,0.00011506,2]
[351270308,1738504276515,-500.0,0.00011506,2]
[351270309,1738504276524,-500.0,0.00011506,2]
[351270310,1738504276534,-500.0,0.00011506,2]
[351270311,1738504276686,-965.66,0.00011506,2]
[351270312,1738504276696,-1286.64,0.00011506,2]
[351270313,1738504276706,-497.69174154,0.00011506,2]
[351270314,1738504276715,-580.88632176,0.00011506,2]
[351270315,1738504276725,-500.0,0.00011506,2]
[351270316,1738504276735,-529.36,0.00011506,2]
[351270317,1738504276744,-500.0,0.00011506,2]
[351270318,1738504276754,-1049.85,0.00011506,2]
[351270319,1738504276764,-500.0,0.00011506,2]
[351270320,1738504276775,-1006.46,0.00011506,2]
[351270321,1738504276784,-500.0,0.00011506,2]
[351270322,1738504276794,-500.0,0.00011506,2]
[351270323,1738504276804,-500.0,0.00011506,2]
[351270324,1738504276813,-606.50237844,0.00011506,2]
[351270325,1738504276823,-614.85,0.00011506,2]
[351270326,1738504276832,-1871.33,0.00011506,2]
[351270327,1738504276841,-500.0,0.00011506,2]
[351270328,1738504276850,-625.4,0.00011506,2]
[351270329,1738504276858,-659.73,0.00011506,2]
[351270330,1738504276867,-500.0,0.00011506,2]
[351270331,1738504276876,-500.0,0.00011506,2]
[351270332,1738504276884,-500.0,0.00011506,2]
[351270333,1738504276893,-1846.27,0.00011506,2]
[351270334,1738504276902,-500.0,0.00011506,2]
[351270335,1738504276911,-500.0,0.00011506,2]
[351270336,1738504276921,-762.07,0.00011506,2]
[351270337,1738504276932,-500.0,0.00011506,2]
[351270338,1738504276941,-589.38,0.00011506,2]
[351270339,1738504276951,-569.09,0.00011506,2]
[351270340,1738504276960,-1236.97,0.00011506,2]
[351270341,1738504276970,-795.49,0.00011506,2]
[351270342,1738504276980,-500.0,0.00011506,2]
[351270343,1738504276990,-600.47330026,0.00011506,2]
[351270344,1738504277000,-636.71,0.00011506,2]
[351270345,1738504277010,-1333.24,0.00011506,2]
[351270346,1738504277020,-1073.33,0.00011506,2]
[351270347,1738504277031,-500.0,0.00011506,2]
[351270348,1738504277042,-643.11,0.00011506,2]
[351270349,1738504277052,-500.0,0.00011506,2]
[351270350,1738504277062,-1349.72,0.00011506,2]
[351270351,1738504277073,-813.06,0.00011506,2]
[351270352,1738504277083,-500.0,0.00011506,2]
[351270353,1738504277094,-500.0,0.00011506,2]
[351270354,1738504277105,-500.0,0.00011506,2]
[351270355,1738504277116,-666.25,0.00011506,2]
[351270356,1738504277127,-4276.69,0.00011506,2]
[351270357,1738504277138,-500.0,0.00011506,2]
[351270358,1738504277148,-500.0,0.00011506,2]
[351270359,1738504277159,-500.0,0.00011506,2]
[351270360,1738504277168,-687.97,0.00011506,2]
[351270361,1738504277184,-160.84126323,0.00011506,2]
[351270362,1738504277195,-492.8324255,0.00011506,2]
[351270363,1738504277205,-500.0,0.00011506,2]
[351270364,1738504277216,-500.0,0.00011506,2]
[351270365,1738504277227,-500.0,0.00011506,2]
[351270366,1738504277236,-500.0,0.00011506,2]
[351270367,1738504277247,-520.25865526,0.00011506,2]
[351270368,1738504277257,-1888.12,0.00011506,2]
[351270369,1738504277267,-500.0,0.00011506,2]
[351270370,1738504277277,-500.0,0.00011506,2]
[351270371,1738504277287,-500.0,0.00011506,2]
[351270372,1738504277296,-500.0,0.00011506,2]
[351270373,1738504277305,-500.0,0.00011506,2]
[351270374,1738504277315,-500.0,0.00011506,2]
[351270375,1738504277324,-500.0,0.00011506,2]
[351270376,1738504277335,-2650.77,0.00011506,2]
[351270377,1738504277345,-500.0,0.00011506,2]
[351270378,1738504277355,-889.49,0.00011506,2]
[351270379,1738504277365,-500.0,0.00011506,2]
[351270380,1738504277375,-500.0,0.00011506,2]
[351270381,1738504277384,-500.0,0.00011506,2]
[351270382,1738504277394,-2073.43,0.00011506,2]
[351270383,1738504277403,-692.85,0.00011506,2]
[351270384,1738504277413,-500.0,0.00011506,2]
[351270385,1738504277425,-631.15,0.00011506,2]
[351270386,1738504277435,-500.0,0.00011506,2]
[351270387,1738504277444,-500.0,0.00011506,2]
[351270388,1738504277453,-500.0,0.00011506,2]
[351270389,1738504277463,-1741.6,0.00011506,2]
[351270390,1738504277472,-1164.33,0.00011506,2]
[351270391,1738504277481,-5378.97,0.00011506,2]
[351270392,1738504277491,-782.16,0.00011506,2]
[351270393,1738504277500,-500.0,0.00011506,2]
[351270394,1738504277511,-1939.2,0.00011506,2]
[351270395,1738504277521,-500.0,0.00011506,2]
[351270396,1738504277530,-500.0,0.00011506,2]
[351270397,1738504277540,-500.0,0.00011506,2]
[351270398,1738504277550,-500.0,0.00011506,2]
[351270399,1738504277560,-3479.36,0.00011506,2]
[351270400,1738504277569,-2115.64,0.00011506,2]
[351270401,1738504277578,-500.0,0.00011506,2]
[351270402,1738504277587,-500.0,0.00011506,2]
[351270403,1738504277597,-500.0,0.00011506,2]
[351270404,1738504277607,-500.0,0.00011506,2]
[351270405,1738504277616,-1744.78,0.00011506,2]
[351270406,1738504277626,-1775.36,0.00011506,2]
[351270407,1738504277644,-500.0,0.00011506,2]
[351270408,1738504277661,-635.62,0.00011506,2]
[351270409,1738504277682,-500.0,0.00011506,2]
[351270410,1738504277701,-500.0,0.00011506,2]
[351270411,1738504277717,-635.75,0.00011506,2]
[351270412,1738504277737,-577.14,0.00011506,2]
[351270413,1738504277756,-4758.77,0.00011506,2]
[351270414,1738504277776,-500.0,0.00011506,2]
[351270415,1738504277794,-535.02,0.00011506,2]
[351270416,1738504277812,-1040.09,0.00011506,2]
[351270417,1738504277830,-500.0,0.00011506,2]
[351270418,1738504277845,-1651.88,0.00011506,2]
[351270419,1738504277863,-2719.88,0.00011506,2]
[351270420,1738504277878,-500.0,0.00011506,2]
[351270421,1738504277895,-1058.2,0.00011506,2]
[351270422,1738504277910,-500.0,0.00011506,2]
[351270423,1738504277927,-500.0,0.00011506,2]
[351270424,1738504277942,-1016.81,0.00011506,2]
[351270425,1738504277958,-556.1,0.00011506,2]
[351270426,1738504277973,-500.0,0.00011506,2]
[351270427,1738504277989,-500.0,0.00011506,2]
[351270428,1738504278004,-2588.77,0.00011506,2]
[351270429,1738504278021,-459.74,0.00011506,2]
[351270430,1738504278037,-500.0,0.00011506,2]
[351270431,1738504278053,-500.0,0.00011506,2]
[351270432,1738504278068,-500.0,0.00011506,2]
[351270433,1738504278085,-932.81,0.00011506,2]
[351270434,1738504278101,-1942.11,0.00011506,2]
[351270435,1738504278117,-500.0,0.00011506,2]
[351270436,1738504278133,-2418.85,0.00011506,2]
[351270437,1738504278149,-1733.68,0.00011506,2]
[351270438,1738504278167,-500.0,0.00011506,2]
[351270439,1738504278185,-2393.49,0.00011506,2]
[351270440,1738504278202,-500.0,0.00011506,2]
[351270441,1738504278218,-566.87,0.00011506,2]
[351270442,1738504278236,-500.0,0.00011506,2]
[351270443,1738504278253,-3124.44,0.00011506,2]
[351270444,1738504278269,-500.0,0.00011506,2]
[351270445,1738504278291,-692.82,0.00011506,2]
[351270446,1738504278307,-2525.16,0.00011506,2]
[351270447,1738504278323,-500.0,0.00011506,2]
[351270448,1738504278339,-1914.95,0.00011506,2]
[351270449,1738504278356,-8288.01,0.00011506,2]
[351270450,1738504278372,-500.0,0.00011506,2]
[351270451,1738504278388,-1132.95,0.00011506,2]
[351270452,1738504278405,-615.63725104,0.00011506,2]
[351270453,1738504278421,-884.77,0.00011506,2]
[351270454,1738504278437,-500.0,0.00011506,2]
[351270455,1738504278452,-4152.35,0.00011506,2]
[351270456,1738504278469,-500.0,0.00011506,2]
[351270457,1738504278487,-500.0,0.00011506,2]
[351270458,1738504278503,-500.0,0.00011506,2]
[351270459,1738504278519,-1549.92,0.00011506,2]
[351270460,1738504278536,-3699.04,0.00011506,2]
[351270461,1738504278553,-3349.22,0.00011506,2]
[351270462,1738504278571,-2155.85,0.00011506,2]
[351270463,1738504278588,-553.14,0.00011506,2]
[351270464,1738504278604,-500.0,0.00011506,2]
[351270465,1738504278620,-500.0,0.00011506,2]
[351270466,1738504278637,-5222.05,0.00011506,2]
[351270467,1738504278654,-500.0,0.00011506,2]
[351270468,1738504278671,-500.0,0.00011506,2]
[351270469,1738504278689,-500.0,0.00011506,2]
[351270470,1738504278705,-1265.95,0.00011506,2]
[351270471,1738504278720,-1887.09,0.00011506,2]
[351270472,1738504278737,-4613.26,0.00011506,2]
[351270473,1738504278753,-500.0,0.00011506,2]
[351270474,1738504278770,-500.0,0.00011506,2]
[351270475,1738504278786,-1975.44,0.00011506,2]
[351270476,1738504278801,-7500.21,0.00011506,2]
[351270477,1738504278818,-1842.34,0.00011506,2]
[351270478,1738504278833,-500.0,0.00011506,2]
[351270479,1738504278849,-6467.51,0.00011506,2]
[351270480,1738504278865,-2260.28,0.00011506,2]
[351270481,1738504278881,-500.0,0.00011506,2]
[351270482,1738504278898,-4127.19,0.00011506,2]
[351270483,1738504278915,-625.86,0.00011506,2]
[351270484,1738504278933,-500.0,0.00011506,2]
[351270485,1738504278950,-522.95,0.00011506,2]
[351270486,1738504278966,-500.0,0.00011506,2]
[351270487,1738504278982,-2930.25,0.00011506,2]
[351270488,1738504278999,-500.0,0.00011506,2]
[351270489,1738504279015,-500.0,0.00011506,2]
[351270490,1738504279031,-500.0,0.00011506,2]
[351270491,1738504279047,-1487.62,0.00011506,2]
[351270492,1738504279063,-2190.38,0.00011506,2]
[351270493,1738504279080,-7605.13,0.00011506,2]
[351270494,1738504279095,-1340.89,0.00011506,2]
[351270495,1738504279111,-500.0,0.00011506,2]
[351270496,1738504279128,-527.51,0.00011506,2]
[351270497,1738504279144,-500.0,0.00011506,2]
[351270498,1738504279162,-500.0,0.00011506,2]
[351270499,1738504279181,-500.0,0.00011506,2]
[351270500,1738504279196,-500.0,0.00011506,2]